bitfinex-derivatives/quotes_ETHF0:USTF0_20250123
["timestamp","ask_amount","ask_price","bid_price","bid_amount"]
[1737664042233,0.60878,3284.8,3283.3,3.2078]
[1737664042531,0.60877,3284.8,3283.3,3.2078]
[1737664042722,3.92148899,3285.0,3283.3,3.2078]
[1737664043032,3.2078,3285.6,3284.8,3.2078]
[1737664043530,5.82802,3286.1,3284.8,3.2078]
[1737664043731,0.00457219,3285.5,3284.8,3.2078]
[1737664044330,3.92148899,3284.9,3284.2,3.2078]
[1737664044533,3.2078,3284.8,3283.8,0.00457219]
[1737664044831,3.92606118,3285.5,3284.0,3.2078]
[1737664045127,0.00457219,3285.5,3285.3,3.2078]
[1737664045326,4.52967899,3287.9,3286.1,0.60851]
[1737664045522,0.06083095,3287.8,3287.0,3.2078]
[1737664045924,0.06083095,3287.8,3286.8,3.2078]
[1737664046229,0.06083095,3287.8,3287.2,3.2078]
[1737664046733,0.00456482,3287.6,3287.0,0.00456482]
[1737664046935,0.0608365,3287.5,3287.0,0.00456482]
[1737664047526,3.8161,3287.3,3287.0,0.00456482]
[1737664047827,0.66916205,3287.2,3287.0,0.00456482]
[1737664048029,0.0608439,3287.1,3287.0,0.00456482]
[1737664048432,0.0608439,3287.1,3287.0,3.21236482]
[1737664048731,0.0608439,3287.1,3287.0,0.00456482]
[1737664049532,0.0608439,3287.1,3287.0,3.21236482]
[1737664049735,0.0608439,3287.1,3287.0,0.00456482]
[1737664049931,8.8769839,3287.1,3287.0,4.82e-06]
[1737664050635,0.6086,3285.7,3285.6,3.2078]
[1737664050831,0.6086,3285.7,3284.2,3.2078]
[1737664050832,3.2078,3285.7,3284.2,3.2078]
[1737664051134,3.2078,3284.9,3283.0,3.2078]
[1737664051329,7.12928899,3285.3,3283.2,3.2078]
[1737664051737,3.2078,3285.2,3283.6,3.2078]
[1737664052034,0.00456482,3284.6,3283.9,0.00456482]
[1737664052225,3.2078,3284.2,3283.9,0.00456482]
[1737664052430,3.2078,3284.2,3283.9,4.82e-06]
[1737664052431,0.60891,3284.0,3283.9,4.82e-06]
[1737664052729,1.52234,3283.9,3281.8,3.2078]
[1737664052931,3.93854561,3283.0,3281.8,3.2078]
[1737664053124,3.2078,3282.1,3281.3,3.2078]
[1737664053325,0.60912,3282.9,3281.7,3.2078]
[1737664053530,3.2078,3283.0,3281.7,3.2078]
[1737664053733,3.2078,3283.0,3281.8,3.2078]
[1737664054230,0.00456482,3282.7,3282.0,0.00456482]
[1737664055225,3.81703,3282.4,3282.0,0.00456482]
[1737664055431,3.2078,3282.3,3282.0,0.00456482]
[1737664055631,0.60926,3282.1,3282.0,0.00456482]
[1737664055838,0.60949,3280.9,3280.8,3.2078]
[1737664056137,0.60949,3280.9,3279.2,4.8975]
[1737664056138,0.60963,3280.2,3279.2,4.8975]
[1737664056331,3.94559496,3280.9,3279.2,4.8975]
[1737664056332,3.2078,3279.7,3279.2,4.8975]
[1737664056533,3.2078,3279.7,3278.7,3.2078]
[1737664056731,0.6098,3279.3,3278.7,3.2078]
[1737664056931,3.2078,3279.8,3277.8,40.8]
[1737664057136,0.00457198,3279.5,3278.9,0.00457198]
[1737664057333,3.2078,3279.4,3278.9,0.00457198]
[1737664057737,3.2078,3279.0,3278.9,0.00457198]
[1737664058237,0.00457198,3279.5,3278.9,0.00457198]
[1737664058434,0.00457198,3279.5,3278.9,3.21237198]
[1737664058743,0.00457198,3279.5,3279.3,3.2078]
[1737664059047,3.2078,3281.2,3279.6,0.60972]
[1737664059340,3.2078,3281.2,3279.8,0.60968]
[1737664059533,3.2078,3281.2,3280.3,3.2078]
[1737664059733,3.2078,3281.7,3280.4,40.8]
[1737664059940,3.2078,3281.3,3280.4,40.8]
[1737664060637,3.2078,3281.3,3280.5,0.00457198]
[1737664060834,0.00457198,3281.4,3280.6,3.2078]
[1737664061034,0.00457198,3281.4,3280.9,3.2078]
[1737664061240,0.00457198,3281.4,3281.3,3.2078]
[1737664061638,12.796,3283.1,3281.3,8.2078]
[1737664061832,12.796,3283.1,3282.1,3.2078]
[1737664062038,3.2078,3283.6,3282.6,3.2078]
[1737664062345,3.81679,3283.6,3282.2,3.2078]
[1737664062644,3.2078,3283.6,3282.3,40.8]
[1737664062939,3.2078,3283.6,3282.8,3.2078]
[1737664063142,0.00457198,3283.2,3282.6,0.00457198]
[1737664063530,3.81695,3282.7,3282.6,0.00457198]
[1737664063948,8.2078,3282.7,3281.4,3.2078]
[1737664064136,3.2078,3282.1,3281.4,3.2078]
[1737664064335,3.94559496,3282.9,3281.4,3.2078]
[1737664064640,0.00457198,3283.2,3282.2,3.2078]
[1737664065030,0.00457198,3283.2,3282.6,3.2078]
[1737664065444,0.00457198,3283.2,3280.9,6.37751]
[1737664065445,0.00457198,3283.2,3282.4,0.00457198]
[1737664066139,0.00457198,3283.2,3282.4,3.21237198]
[1737664066330,0.00457198,3283.2,3282.8,3.2078]
[1737664066931,0.00457198,3283.2,3282.4,0.00457198]
[1737664067143,0.00457198,3283.2,3282.6,3.2078]
[1737664067340,0.00457198,3283.2,3282.7,3.2078]
[1737664067838,0.00457198,3283.2,3283.1,3.2078]
[1737664068044,0.00457198,3283.2,3282.7,3.2078]
[1737664068748,0.00457198,3283.2,3283.1,3.2078]
[1737664069640,3.2078,3284.6,3283.1,3.2078]
[1737664069641,16.0108,3285.2,3283.1,8.2078]
[1737664069845,12.803,3285.2,3284.3,3.2078]
[1737664070043,8.12869627,3286.0,3284.3,3.2078]
[1737664070244,3.2078,3285.6,3284.3,3.2078]
[1737664070442,3.2078,3285.2,3284.3,3.2078]
[1737664070943,3.2078,3285.2,3283.8,0.60893]
[1737664070944,0.60871,3285.1,3284.6,0.00457198]
[1737664071140,0.00457198,3285.3,3284.6,0.00457198]
[1737664071641,3.2078,3285.2,3284.6,0.00457198]
[1737664071851,0.60871,3285.1,3284.6,0.00457198]
[1737664072144,3.2078,3285.2,3284.6,0.00457198]
[1737664072346,3.2078,3284.7,3284.6,0.00457198]
[1737664072539,3.81658,3284.7,3284.6,0.00457198]
[1737664072736,3.21237198,3285.3,3284.6,0.00457198]
[1737664072948,3.82105198,3285.3,3284.6,0.00457198]
[1737664073245,3.2078,3284.8,3284.6,0.00457198]
[1737664073445,0.00457198,3285.3,3284.6,0.00457198]
[1737664073647,0.00457198,3285.3,3284.9,3.2078]
[1737664073848,3.2078,3286.5,3284.9,3.2078]
[1737664074043,3.2078,3286.9,3285.3,3.2078]
[1737664074241,0.60839,3286.8,3285.3,3.81646]
[1737664074443,0.60841,3286.7,3285.7,3.2078]
[1737664074644,3.2078,3286.9,3285.7,3.2078]
[1737664074645,0.60844,3286.6,3285.7,3.2078]
[1737664074845,3.2078,3286.9,3286.1,3.2078]
[1737664075045,0.60822,3287.8,3286.8,3.2078]
[1737664075246,0.06083095,3287.8,3287.3,3.2078]
[1737664075549,3.2078,3289.4,3287.7,3.2078]
[1737664075744,10.1864,3290.6,3289.0,3.2078]
[1737664075745,0.6078,3290.1,3289.0,3.2078]
[1737664075946,3.2078,3290.2,3288.8,3.2078]
[1737664076246,0.60772,3290.5,3289.2,3.2078]
[1737664076441,5.3204,3290.8,3289.6,3.2078]
[1737664076642,0.06077549,3290.8,3290.4,3.2078]
[1737664077046,0.00456447,3290.5,3289.9,0.00456447]
[1737664077548,0.00456447,3290.5,3290.0,3.2078]
[1737664077736,0.00456447,3290.5,3289.9,0.00456447]
[1737664077938,8.73649627,3290.0,3289.9,0.00456447]
[1737664078148,8.12869627,3290.0,3289.1,3.2078]
[1737664078341,3.2078,3289.4,3288.6,3.2078]
[1737664078541,4.92089627,3289.4,3288.6,3.2078]
[1737664078750,4.92089627,3289.4,3288.1,3.2078]
[1737664079245,3.2078,3289.6,3288.5,3.2078]
[1737664079555,0.00456447,3289.1,3288.5,3.2078]
[1737664080056,0.00456447,3289.1,3288.4,0.00456447]
[1737664080951,4.92089627,3288.7,3287.2,3.2078]
[1737664081142,4.92089627,3288.6,3287.2,3.2078]
[1737664081349,3.2078,3288.9,3288.1,3.2078]
[1737664081550,0.00456447,3289.1,3288.5,3.2078]
[1737664082454,0.00456447,3289.1,3288.5,3.21236447]
[1737664082652,0.00456447,3289.1,3288.9,3.2078]
[1737664083955,0.60799,3289.0,3288.5,0.00456447]
[1737664084153,3.2078,3288.6,3287.2,3.2078]
[1737664084453,0.60832,3287.2,3286.1,8.3151]
[1737664084646,4.92089627,3287.2,3286.1,8.3151]
[1737664085150,6.41531,3289.0,3286.2,0.6085]
[1737664085151,3.2078,3287.5,3286.2,0.6085]
[1737664085353,3.2078,3287.5,3286.9,3.2078]
[1737664085555,0.00456447,3287.0,3286.9,3.2078]
[1737664085943,0.00456447,3287.0,3286.9,3.2686476]
[1737664086546,0.00456447,3287.0,3286.9,0.0608476]
[1737664087757,3.82071447,3287.0,3286.9,0.0608476]
[1737664087958,8.82071447,3287.0,3286.9,7.6e-06]
[1737664088159,3.21236447,3287.0,3286.3,0.00456447]
[1737664088460,0.00456447,3287.0,3286.3,3.21236447]
[1737664088651,3.21236447,3287.0,3286.3,0.00456447]
[1737664089150,0.60847,3286.4,3286.3,0.00456447]
[1737664089551,3.2078,3286.6,3286.3,0.00456447]
[1737664089747,0.00456447,3287.0,3286.3,0.00456447]
[1737664090061,0.00456447,3287.0,3286.7,3.2078]
[1737664090359,0.00456447,3287.0,3286.4,3.2078]
[1737664091057,3.2078,3286.6,3286.3,0.00456447]
[1737664091357,3.21236447,3287.0,3286.3,0.00456447]
[1737664091654,0.60846,3286.5,3286.3,0.00456447]
[1737664091846,0.60847,3286.4,3286.3,0.00456447]
[1737664093056,0.00456447,3287.0,3286.3,0.00456447]
[1737664093654,0.60838,3286.9,3286.3,0.00456447]
[1737664093856,3.2078,3286.4,3284.4,3.2078]
[1737664094057,4.92089627,3285.8,3284.4,3.81663]
[1737664094260,3.2078,3286.2,3284.4,3.81662]
[1737664094452,3.2078,3285.8,3284.4,3.81662]
[1737664094659,3.2078,3285.8,3284.4,3.81663]
[1737664094859,3.2078,3285.8,3284.4,3.2078]
[1737664095163,3.2078,3285.8,3284.8,0.00456447]
[1737664095562,3.2078,3285.8,3284.8,3.21236447]
[1737664095762,3.2078,3285.6,3284.8,3.21236447]
[1737664095963,0.00456447,3287.0,3285.5,3.2078]
[1737664096358,3.2078,3286.7,3285.1,3.2078]
[1737664096660,3.2078,3286.0,3285.1,3.2078]
[1737664096864,0.6085,3286.3,3285.1,3.2078]
[1737664097066,3.81623,3286.6,3285.2,40.8]
[1737664097262,0.60846,3286.5,3285.2,40.8]
[1737664097565,0.00456447,3287.0,3285.5,3.2078]
[1737664097765,0.00456447,3287.0,3286.7,3.2078]
[1737664098265,0.00456447,3287.0,3285.3,5.1901]
[1737664098468,0.60841,3286.7,3286.5,0.00456447]
[1737664098660,3.2078,3286.8,3286.5,0.00456447]
[1737664098859,0.60843,3286.6,3286.5,0.00456447]
[1737664099057,0.60842,3286.7,3286.5,0.00456447]
[1737664099255,0.00456447,3287.0,3286.5,0.00456447]
[1737664099469,0.60843,3286.6,3286.5,0.00456447]
[1737664099763,3.2078,3286.7,3286.5,0.00456447]
[1737664100163,0.00456447,3287.0,3286.5,0.00456447]
[1737664100569,0.60843,3286.6,3286.5,0.00456447]
[1737664100761,3.2078,3286.8,3286.5,0.00456447]
[1737664101070,3.21236447,3287.0,3286.5,0.00456447]
[1737664101369,0.00456447,3287.0,3286.5,0.00456447]
[1737664101561,0.00456447,3287.0,3286.8,3.2078]
[1737664102769,0.00456447,3287.0,3286.5,0.00456447]
[1737664102970,0.60843,3286.6,3286.5,0.00456447]
[1737664103166,3.81623,3286.6,3286.5,0.00456447]
[1737664103367,0.60843,3286.6,3286.5,0.00456447]
[1737664103563,5.60843,3286.6,3286.5,0.00456447]
[1737664103871,0.60843,3286.6,3286.5,4.47e-06]
[1737664104060,5.60843,3286.6,3286.5,4.47e-06]
[1737664104263,0.00456447,3287.0,3286.5,4.47e-06]
[1737664104264,0.00456447,3287.0,3286.5,5.00001043]
[1737664104469,3.2078,3290.8,3288.4,3.2078]
[1737664104671,0.06077734,3290.7,3289.6,3.2078]
[1737664105166,0.06077734,3290.7,3290.0,3.2078]
[1737664105368,0.06077734,3290.7,3290.4,3.2078]
[1737664105869,0.06534181,3290.7,3290.4,3.28234522]
[1737664106065,0.60774,3290.4,3290.0,0.00456447]
[1737664106266,0.00456447,3290.7,3290.3,3.2078]
[1737664106768,0.00456447,3290.7,3290.3,3.28234522]
[1737664107468,4.92089627,3293.6,3290.6,3.2078]
[1737664107676,0.60718,3293.4,3292.1,3.2078]
[1737664107873,8.5136,3293.5,3292.1,3.2078]
[1737664108069,0.60734,3292.5,3292.1,3.2078]
[1737664108278,3.2078,3292.7,3291.6,3.2078]
[1737664108476,0.60729,3292.8,3291.6,3.2078]
[1737664108671,3.2078,3292.1,3291.2,3.2078]
[1737664108867,3.21235699,3292.5,3291.8,0.00455699]
[1737664109379,3.2078,3292.1,3290.8,3.2078]
[1737664109565,0.6076,3291.1,3290.4,3.2078]
[1737664109778,3.2078,3291.1,3289.8,3.2078]
[1737664109979,3.2078,3290.4,3289.3,3.2078]
[1737664110168,0.60779,3290.1,3289.3,3.2078]
[1737664110375,3.2078,3290.4,3289.3,3.2078]
[1737664110680,0.60775,3290.3,3289.3,3.2078]
[1737664110980,0.00455699,3290.0,3289.7,3.2078]
[1737664111775,3.2078,3289.9,3289.4,0.00455699]
[1737664112080,3.2078,3289.5,3288.1,3.2078]
[1737664112277,0.60808,3288.5,3288.2,0.06082355]
[1737664112577,3.2078,3288.3,3288.2,0.06082355]
[1737664112773,3.81562,3290.0,3288.2,0.66894355]
[1737664113075,1.51881,3291.6,3288.2,0.66894355]
[1737664113076,3.2078,3290.5,3289.5,3.2078]
[1737664113275,3.2078,3290.5,3289.9,3.2078]
[1737664113482,0.60784,3289.8,3288.8,3.2078]
[1737664113669,3.2078,3290.3,3288.5,4.9767]
[1737664113871,3.2078,3289.4,3288.7,3.2078]
[1737664114082,3.2078,3290.4,3288.7,3.2078]
[1737664114377,3.2078,3290.4,3288.8,3.2078]
[1737664114571,3.2078,3289.5,3288.8,3.2078]
[1737664114770,3.2078,3290.3,3289.2,3.2078]
[1737664114983,3.2078,3290.3,3288.8,3.2078]
[1737664115275,0.00455699,3290.5,3288.3,3.2078]
[1737664115276,3.2078,3289.0,3288.3,3.2078]
[1737664115478,3.2078,3289.0,3287.8,3.2078]
[1737664115676,3.2078,3288.7,3287.4,3.2078]
[1737664115874,0.60808,3288.6,3287.4,3.2078]
[1737664116073,0.00455699,3288.7,3287.8,3.2078]
[1737664116275,0.00455699,3288.7,3288.2,3.2078]
[1737664116975,0.00455699,3288.7,3288.3,3.2078]
[1737664117982,0.00455699,3288.7,3288.3,3.28234522]
[1737664118980,3.2078,3290.2,3288.3,8.2078]
[1737664119177,3.2078,3291.2,3288.4,4.9534]
[1737664119477,4.8777,3292.2,3290.5,3.2078]
[1737664119689,4.8777,3292.2,3290.9,3.2078]
[1737664119982,5.48511,3292.2,3290.9,3.2078]
[1737664120180,4.8777,3292.2,3291.3,3.2078]
[1737664120484,0.00455699,3291.9,3291.7,3.2078]
[1737664121082,0.00455699,3291.9,3291.7,0.07454522]
[1737664121378,0.00455699,3291.9,3291.7,3.28234522]
[1737664121781,0.00455699,3291.9,3291.7,0.07454522]
[1737664121976,0.00455699,3291.9,3291.2,0.00455699]
[1737664122283,0.00455699,3291.9,3291.2,0.07910221]
[1737664122485,3.2078,3291.7,3291.2,0.00455699]
[1737664122685,3.81536,3291.3,3291.2,0.00455699]
[1737664122883,3.2078,3291.3,3289.5,3.2078]
[1737664123081,3.2078,3290.9,3289.5,3.2078]
[1737664123278,3.2078,3290.4,3289.5,3.2078]
[1737664123788,0.60783,3289.9,3289.5,3.2078]
[1737664123981,3.2078,3290.4,3289.5,3.2078]
[1737664124180,3.2078,3290.0,3288.6,3.2078]
[1737664124378,0.60789,3289.5,3288.6,3.2078]
[1737664124585,3.2078,3289.6,3288.6,3.2078]
[1737664124787,3.2078,3290.1,3289.0,3.2078]
[1737664125479,0.60782,3290.0,3289.0,3.2078]
[1737664125686,0.00455699,3290.3,3289.0,3.2078]
[1737664125880,3.81559,3290.1,3289.0,3.2078]
[1737664126075,3.2078,3290.1,3289.0,3.2078]
[1737664126277,0.00455699,3290.3,3287.6,4.8726]
[1737664126278,3.2078,3289.3,3287.9,3.2078]
[1737664126483,0.60808,3288.6,3287.9,3.2078]
[1737664126679,6.41289116,3289.6,3287.9,3.2078]
[1737664126680,3.2078,3289.0,3287.9,3.2078]
[1737664126888,3.2078,3288.4,3287.9,3.2078]
[1737664127481,3.2078,3288.4,3286.9,3.2078]
[1737664127687,3.2078,3288.4,3287.3,3.2078]
[1737664127989,3.2078,3288.2,3287.3,3.2078]
[1737664128187,3.2078,3288.4,3287.7,3.2078]
[1737664128385,0.00455699,3288.8,3287.7,3.2078]
[1737664128683,0.00455699,3288.8,3287.1,3.2078]
[1737664129089,3.2078,3288.0,3286.7,3.2078]
[1737664129391,3.2078,3287.4,3286.3,3.2078]
[1737664129590,3.2078,3288.1,3286.3,3.2078]
[1737664129786,3.2078,3288.3,3286.3,3.2078]
[1737664129984,0.60842,3286.7,3286.1,4.8712]
[1737664130183,3.81625,3286.5,3286.1,4.8712]
[1737664130483,0.60831,3287.3,3285.8,3.2078]
[1737664130684,3.2078,3287.4,3285.8,3.2078]
[1737664130988,0.00456425,3286.6,3285.8,3.2078]
[1737664131188,0.00456425,3286.6,3285.3,5.0344]
[1737664131189,0.00456425,3286.6,3286.3,3.2078]
[1737664131486,3.2078,3287.9,3286.3,3.2078]
[1737664131689,3.2078,3289.0,3287.2,3.2078]
[1737664131882,0.60815,3288.2,3287.2,3.2078]
[1737664132085,3.2078,3288.9,3287.6,3.2078]
[1737664132393,3.2078,3288.1,3286.7,3.2078]
[1737664132582,0.60827,3287.5,3286.7,3.2078]
[1737664132788,0.60832,3287.2,3286.7,3.2078]
[1737664132988,3.2078,3287.3,3286.7,3.2078]
[1737664133190,3.2078,3287.3,3286.8,0.00456425]
[1737664133492,0.60837,3286.9,3286.8,0.00456425]
[1737664133995,8.11368069,3287.6,3286.8,0.00456425]
[1737664134283,3.2078,3286.9,3285.7,3.2078]
[1737664134879,3.2078,3286.5,3285.7,3.2078]
[1737664135089,3.2078,3286.5,3285.6,3.2078]
[1737664135290,3.2078,3286.5,3285.7,3.2078]
[1737664135493,0.60839,3286.9,3285.7,3.2078]
[1737664135690,0.00456425,3286.4,3286.1,3.2078]
[1737664136191,0.00456425,3286.4,3286.3,3.2078]
[1737664136581,0.00456425,3286.4,3286.3,3.27778097]
[1737664137287,0.00456425,3286.4,3286.3,0.06998097]
[1737664137890,3.2078,3287.6,3286.3,0.06998097]
[1737664138087,3.2078,3288.7,3287.2,3.2078]
[1737664138285,0.60809,3288.5,3287.2,3.2078]
[1737664138594,3.2078,3289.2,3288.0,3.2078]
[1737664138793,13.389,3288.9,3288.0,3.2078]
[1737664138994,12.781,3288.9,3288.0,3.2078]
[1737664139197,0.61258425,3288.8,3288.1,0.00456425]
[1737664139493,0.00456425,3288.8,3288.6,3.2078]
[1737664139892,0.00456425,3288.8,3288.6,3.27778097]
[1737664140191,0.00456425,3288.8,3288.6,0.06998097]
[1737664140493,0.60813,3288.2,3288.1,0.00456425]
[1737664140796,8.11368069,3288.2,3286.7,3.2078]
[1737664140991,3.2078,3287.5,3286.3,3.2078]
[1737664141190,3.2078,3287.1,3286.3,3.2078]
[1737664141396,3.2078,3287.5,3286.3,3.2078]
[1737664141893,3.2078,3287.1,3286.3,3.2078]
[1737664142287,3.2078,3287.1,3285.7,3.2078]
[1737664142496,0.00456425,3287.2,3285.7,3.2078]
[1737664142497,1.52095,3286.9,3285.7,3.2078]
[1737664142793,3.2078,3286.3,3285.7,3.2078]
[1737664142986,8.11368069,3285.8,3284.7,3.2078]
[1737664143183,0.60874,3285.0,3284.7,3.2078]
[1737664143395,0.60873,3285.0,3284.7,3.2078]
[1737664143592,0.00456425,3285.6,3284.7,3.2078]
[1737664143799,0.60871,3285.1,3284.7,3.2078]
[1737664144095,3.21236425,3285.6,3284.7,3.2078]
[1737664144398,4.90588069,3285.2,3283.9,5.0806]
[1737664144693,0.60877,3284.8,3283.8,3.2078]
[1737664144898,0.60875,3284.9,3283.8,3.2078]
[1737664145092,3.8166,3284.6,3283.8,3.2078]
[1737664145495,0.60883,3284.5,3283.8,3.2078]
[1737664145691,0.60888,3284.2,3283.8,3.2078]
[1737664145891,3.2078,3284.6,3283.8,3.2078]
[1737664146101,3.2078,3284.2,3283.3,3.2078]
[1737664146495,0.60884,3284.4,3283.3,3.2078]
[1737664146701,3.81658,3284.8,3284.0,3.2078]
[1737664146893,3.2078,3284.8,3283.6,3.2078]
[1737664147098,3.2078,3285.0,3283.8,3.2078]
[1737664147300,0.00456425,3285.6,3284.2,3.2078]
[1737664147490,0.00456425,3285.6,3283.0,6.42999805]
[1737664147491,0.00456425,3285.6,3284.6,3.2078]
[1737664147796,0.60864,3285.5,3284.7,40.8]
[1737664148002,0.60885,3284.4,3284.1,3.2078]
[1737664148188,3.2078,3284.7,3284.1,3.2078]
[1737664148497,0.60883,3284.5,3284.1,3.2078]
[1737664148701,0.60887,3284.2,3284.1,3.2078]
[1737664148888,3.2078,3284.7,3284.1,3.2078]
[1737664149290,0.60884,3284.4,3284.1,3.2078]
[1737664149500,4.90588069,3285.2,3284.1,3.2078]
[1737664149698,4.90588069,3285.2,3283.9,3.2078]
[1737664150099,0.60882,3284.5,3283.4,3.2078]
[1737664150296,4.90588069,3284.6,3283.4,3.2078]
[1737664150504,4.90588069,3285.2,3283.4,3.2078]
[1737664150896,0.60877,3284.8,3283.8,3.2078]
[1737664151200,0.00456425,3285.6,3284.2,3.2078]
[1737664151599,3.2078,3285.3,3284.2,3.2078]
[1737664151800,0.60882,3284.5,3284.2,3.2078]
[1737664151998,0.60889,3284.2,3283.8,3.2078]
[1737664152201,3.2078,3284.9,3283.8,3.2078]
[1737664152501,3.2078,3284.5,3283.0,3.2078]
[1737664152703,0.60895,3283.8,3283.0,3.2078]
[1737664152895,3.2078,3283.7,3283.0,3.2078]
[1737664153103,0.60907,3283.2,3282.5,3.2078]
[1737664153306,0.60909,3283.1,3282.5,3.2078]
[1737664153505,3.2078,3283.3,3282.5,3.2078]
[1737664153803,3.2078,3282.6,3281.6,3.2078]
[1737664153999,3.2078,3282.6,3282.0,3.2078]
[1737664154303,0.60911,3283.0,3282.0,3.2078]
[1737664154495,0.00457129,3282.6,3282.4,3.2078]
[1737664155006,0.60895,3283.8,3282.4,8.2078]
[1737664155303,0.60891,3284.0,3283.1,3.2078]
[1737664155605,0.60888,3284.2,3283.1,3.2078]
[1737664155794,8.3464,3284.8,3283.1,3.2078]
[1737664155998,8.11368069,3284.0,3283.1,3.2078]
[1737664156295,4.90588069,3283.4,3282.0,3.2078]
[1737664156495,0.60904,3283.3,3283.2,0.00457129]
[1737664156692,1.52267,3283.2,3281.6,3.2078]
[1737664156893,3.2078,3282.4,3281.6,3.2078]
[1737664157095,0.60926,3282.2,3280.9,3.2078]
[1737664157294,3.2078,3282.3,3281.3,3.2078]
[1737664157805,0.00457129,3282.1,3280.8,3.2078]
[1737664158005,0.60939,3281.5,3280.5,4.9987]
[1737664158201,0.60949,3280.9,3280.4,3.2078]
[1737664158501,0.00457129,3282.1,3280.8,3.2078]
[1737664158801,4.90588069,3282.5,3280.8,3.2078]
[1737664159200,0.00457129,3281.8,3281.2,3.2078]
[1737664159797,0.00457129,3281.8,3280.8,3.2078]
[1737664160002,0.60938,3281.5,3280.8,3.2078]
[1737664160307,3.2078,3281.6,3280.8,3.2078]
[1737664160603,0.00457129,3281.8,3281.4,3.2078]
[1737664160907,3.2078,3283.6,3281.4,8.2078]
[1737664161109,3.2078,3283.6,3282.0,3.2078]
[1737664161703,0.60913,3282.9,3282.0,3.2078]
[1737664161903,3.2078,3283.6,3282.0,3.2078]
[1737664161904,0.60914,3282.8,3282.5,0.00457129]
[1737664162102,0.00457129,3283.1,3282.7,3.2078]
[1737664162500,0.00457129,3283.1,3282.5,0.00457129]
[1737664162703,0.6091,3283.0,3282.5,0.00457129]
[1737664162905,3.21237129,3283.1,3282.5,0.00457129]
[1737664163206,5.51472069,3284.4,3283.0,3.2078]
[1737664163414,4.90588069,3285.0,3283.6,3.2078]
[1737664163607,3.2078,3284.8,3283.2,3.2078]
[1737664163912,0.60895,3283.8,3283.2,3.2078]
[1737664164113,3.2078,3284.8,3283.6,3.2078]
[1737664164308,4.90588069,3285.0,3284.0,3.2078]
[1737664164503,0.00457129,3284.5,3284.0,3.2078]
[1737664164700,0.60888,3284.2,3284.0,3.2078]
[1737664164908,0.60899,3283.6,3283.5,3.2078]
[1737664165103,4.90588069,3284.4,3282.6,5.1261]
[1737664165308,4.90588069,3283.8,3282.9,3.2078]
[1737664165513,0.60908,3283.2,3282.9,3.2078]
[1737664165815,3.2078,3283.6,3282.9,3.2078]
[1737664166010,3.2078,3283.6,3282.5,3.21237129]
[1737664166215,3.2078,3283.5,3282.5,3.21237129]
[1737664166514,4.90588069,3284.4,3283.0,3.2078]
[1737664166812,0.00457129,3284.5,3283.4,3.2078]
[1737664167113,4.90588069,3283.7,3282.6,5.0703]
[1737664167313,3.2078,3284.0,3282.8,3.2078]
[1737664167612,0.60917,3282.6,3282.5,0.00457129]
[1737664167818,3.65511,3282.6,3280.4,3.2078]
[1737664168114,3.2078,3281.0,3280.4,3.2078]
[1737664168504,3.2078,3281.0,3280.3,5.0257]
[1737664168505,0.60956,3280.5,3280.3,5.0257]
[1737664168706,0.60956,3280.5,3279.3,5.2788]
[1737664168707,3.2078,3280.6,3279.3,3.2078]
[1737664168910,3.81755,3279.5,3278.7,3.2078]
[1737664169108,0.60974,3279.6,3278.7,3.2078]
[1737664169413,3.2078,3279.9,3278.0,44.0078]
[1737664169414,0.60991,3278.7,3278.0,44.0078]
[1737664169618,3.2078,3278.9,3278.8,0.00457129]
[1737664169821,0.60985,3279.0,3278.8,0.00457129]
[1737664170019,3.2078,3279.3,3278.8,0.00457129]
[1737664170320,0.60976,3279.5,3278.8,0.00457129]
[1737664170513,0.00457129,3280.3,3279.0,3.2078]
[1737664170717,0.60966,3280.0,3279.0,3.2078]
[1737664170906,0.60963,3280.2,3279.0,3.2078]
[1737664171112,0.60965,3280.0,3279.0,3.2078]
[1737664171411,0.00457129,3280.3,3279.0,3.2078]
[1737664171609,0.60965,3280.0,3279.0,3.2078]
[1737664171809,0.00457129,3280.3,3279.0,3.2078]
[1737664172221,0.00457129,3280.3,3279.4,3.2078]
[1737664173216,0.60963,3280.2,3279.4,3.2078]
[1737664173412,0.00457129,3280.3,3279.8,3.2078]
[1737664173716,3.2078,3282.0,3280.2,3.2078]
[1737664173916,0.60938,3281.5,3280.2,3.2078]
[1737664174114,3.81716,3281.6,3280.2,3.2078]
[1737664174416,4.90588069,3282.1,3279.9,5.3457]
[1737664174417,3.2078,3282.1,3281.2,3.2078]
[1737664174714,0.00457129,3282.0,3281.7,3.2078]
[1737664175224,0.00457129,3282.0,3281.7,3.25949581]
[1737664175811,3.2078,3283.0,3281.7,3.25949581]
[1737664176122,3.2078,3283.0,3281.9,3.2078]
[1737664176322,0.60912,3282.9,3281.9,3.2078]
[1737664176713,12.799,3283.3,3282.3,3.2078]
[1737664176908,12.799,3283.3,3282.7,3.2078]
[1737664177113,0.00457129,3283.1,3282.7,3.2078]
[1737664177322,0.00457129,3283.1,3282.7,3.25949581]
[1737664178115,3.2078,3285.0,3282.7,3.2078]
[1737664178421,0.60889,3284.2,3283.6,3.2078]
[1737664178612,0.60904,3283.4,3283.0,3.2078]
[1737664178813,0.60904,3283.4,3281.7,0.60934]
[1737664178814,8.11368069,3284.0,3282.5,3.2078]
[1737664179114,8.11368069,3284.0,3281.6,40.8]
[1737664179115,0.60885,3284.4,3283.2,3.2078]
[1737664179419,1.52152,3285.7,3283.1,0.60906]
[1737664179420,0.00457129,3283.6,3283.1,0.60906]
[1737664179617,3.2078,3285.5,3283.5,3.2078]
[1737664179921,3.2078,3285.5,3283.9,3.2078]
[1737664180123,0.60891,3284.0,3283.5,3.2078]
[1737664180424,4.90588069,3285.2,3283.5,3.2078]
[1737664180618,0.60891,3284.1,3283.5,3.2078]
[1737664180920,0.60891,3284.1,3282.9,0.00457129]
[1737664180921,0.60898,3283.6,3282.9,0.00457129]